Cogmind - Beta 14 @@@ ROGUE MODE // 2025.01.09 @ 18:29:43 Player: SuperSwiss Result: Self-destructed Performance ------------- Evolutions (1) 500 Regions Visited (2) 400 Robots Destroyed (33) 165 Value Destroyed (596) 596 Prototype IDs (0) 0 Alien Tech Used (0) 0 Bonus (0) 0 TOTAL SCORE: 1661 Bonus ------- None Cogmind --------- Core Integrity 322/400 Matter 275/300 Energy 160/160 System Corruption 0% Temperature Cool (0) Movement Treading (240) Ox1 Location -9/Materials Parts ------- > --- POWER (1) -------- Light Nuclear Core > --- PROPULSION (3) --- Light Treads Light Treads Light Treads > --- UTILITY (3) ------ Huge Storage Unit Seismic Detector > --- WEAPON (2) ------- Beam Cannon Assault Rifle > --- INVENTORY (25) --- Light Ion Engine Light Treads Light Treads Small Storage Unit Seismic Detector Light Armor Plating Light Armor Plating Beam Cannon Grenade Launcher Grenade Launcher Peak State ------------ > --- POWER ------------ Light Nuclear Core > --- PROPULSION ------- Light Treads Light Treads Light Treads > --- UTILITY ---------- Huge Storage Unit Seismic Detector Light Armor Plating > --- WEAPON ----------- Beam Cannon Assault Rifle > --- INVENTORY -------- Light Ion Engine Light Treads Light Treads Small Storage Unit Seismic Detector Light Armor Plating Light Armor Plating Beam Cannon Grenade Launcher Grenade Launcher [Rating: 12] Favorites ----------- Power Light Ion Engine Engine Light Ion Engine Power Core Light Nuclear Core Propulsion Light Treads Treads Light Treads Utility Seismic Detector Device Seismic Detector Storage Small Storage Unit Protection Light Armor Plating Weapon Assault Rifle Energy Cannon Beam Cannon Ballistic Gun Assault Rifle Launcher Grenade Launcher Build | -11 -10 -9 ------- Run | Yrd Mat Mat Slots Evolved 2 | . . 2 Power . | . . . Propulsion 1 | . . 1 Utility 1 | . . 1 Weapon . | . . . Parts Attached 20 | 7 3 10 Power 3 | 1 1 1 Engine 2 | 1 1 . Core 1 | . . 1 Reactor . | . . . Propulsion 4 | 2 1 1 Treads 4 | 2 1 1 Leg . | . . . Wheel . | . . . Hover . | . . . Flight . | . . . Utility 5 | 2 1 2 Device 2 | 1 . 1 Storage 2 | 1 1 . Processor . | . . . Hackware . | . . . Protection 1 | . . 1 Artifact . | . . . Weapon 8 | 2 . 6 Energy Gun . | . . . Energy Cannon 2 | . . 2 Ballistic Gun 4 | 2 . 2 Ballistic Cannon . | . . . Launcher 2 | . . 2 Special Weapon . | . . . Impact Weapon . | . . . Slashing Weapon . | . . . Piercing Weapon . | . . . Special Melee Weapon . | . . . Unidentified Prototypes . | . . . Parts Lost 4 | . 1 3 Power 1 | . 1 . Propulsion . | . . . Utility 2 | . . 2 Weapon 1 | . . 1 Highest Loss Streak 1 | . 1 1 To Critical Strikes . | . . . Average Slot Usage (%) 95 | . 95 93 Engine 9 | . 10 6 Treads 28 | . 28 33 Device 13 | . 14 9 Storage 13 | . 14 11 Protection 1 | . . 6 Energy Cannon 2 | . . 12 Ballistic Gun 24 | . 28 8 Peak Build Rating 12 | 7 7 12 Average Rating 7 | 5 6 9 On Entrance 4 | . 7 7 Naked Turns . | . . . Heaviest Build 95 | 13 88 95 Greatest Support 60 | 40 40 60 Greatest Overweight (x) 2 | . 2 1 Average Overweight (x) . | . . 1 Largest Inventory Capacity 25 | 8 25 25 Average Capacity 16 | 7 14 25 Most Carried 11 | 5 6 11 Average Carried 3 | . 2 8 Final Capacity 25 | 8 25 25 Final Carried 10 | . 6 10 Class Distribution -------------------- 100% | Mutant Dominant Class ---------------- Mutant | -10/Materials Mutant | -9/Materials Resources | -11 -10 -9 ----------- Run | Yrd Mat Mat Matter Collected 841 | 330 324 187 Remotely . | . . . Salvage Created 1085 | 167 475 443 Parts 76 | 11 33 32 Haulers Intercepted 3 | . 2 1 Recyclers Shooed 1 | . . 1 Parts Field Recycled . | . . . Retrieved Matter . | . . . Parts Self-Destructed . | . . . Prevented . | . . . Kills | -11 -10 -9 ------- Run | Yrd Mat Mat Combat Hostiles Destroyed 21 | . 9 12 Guns 13 | . 9 4 Cannons 5 | . . 5 AOE 2 | . . 2 Classes Destroyed 8 | 2 5 1 Worker 2 | . 2 . Builder 2 | . 2 . Tunneler 3 | 3 . . Hauler 3 | . 2 1 Recycler 2 | 1 . 1 Swarmer 10 | . 3 7 Grunt 9 | . 6 3 Sentry 2 | . . 2 Best Kill Streak 5 | 4 5 5 Combat Bots Only 5 | . 3 5 Max Kills in Single Turn 2 | 1 1 2 Gunslinging . | . . . Exploded 2 | . . 2 Melee . | . . . Uniques/NPCs Destroyed . | . . . Combat | -11 -10 -9 -------- Run | Yrd Mat Mat Hostile Shots Fired 116 | . 46 70 Missed 37 | . 13 24 Damage Taken 883 | . 365 518 Core 100 | . 22 78 Absorbed by Shields . | . . . Core Remaining (%) 95 | 100 91 . Volleys Fired 90 | 10 40 40 Largest 2 | 2 2 2 Hottest 120 | 40 40 120 Shots Fired 174 | 20 81 73 Gun 129 | 20 81 28 Cannon 42 | . . 42 Launcher 3 | . . 3 Special . | . . . Kinetic 129 | 20 81 28 Thermal 42 | . . 42 Explosive 3 | . . 3 Electromagnetic . | . . . Robot Hit Streak 13 | 3 7 13 Robot Miss Streak 6 | 2 6 3 Penetration Max . | . . . Secondary Targets . | . . . Shots Hit Robots 108 | 12 49 47 Core Hits 45 | 4 23 18 Critical Kills . | . . . Critical Parts Destroyed . | . . . Critical Strikes . | . . . Melee Attacks . | . . . Impact . | . . . Slashing . | . . . Piercing . | . . . Sneak Attacks . | . . . Combat Hostiles . | . . . Follow-up Attacks . | . . . Damage Inflicted 1644 | 142 641 861 Guns 1024 | 142 639 243 Cannons 511 | . . 511 Explosions 107 | . . 107 Melee . | . . . Ramming 2 | . 2 . Kinetic 1024 | 142 639 243 Thermal 511 | . . 511 Explosive 107 | . . 107 Electromagnetic . | . . . Impact . | . . . Slashing . | . . . Piercing . | . . . Highest Corruption 4 | . 4 . Average Corruption 3 | . 3 . Corruption Purged . | . . . Corruption Blocked . | . . . Effects 25 | . 25 . Message Errors 5 | . 5 . Matter Fused 8 | . 8 . Heat Flow Errors 2 | . 2 . Energy Discharges 2 | . 2 . Parts Rejected 1 | . 1 . Parts Fused 1 | . 1 . Data Loss (minor) 4 | . 4 . Data Loss (major) 1 | . 1 . Misfires 1 | . 1 . Overload Shots . | . . . Overflow Damage . | . . . Projectiles . | . . . Explosions . | . . . Melee . | . . . Knockbacks . | . . . Impact . | . . . Kinetic . | . . . Secondary . | . . . Self-Inflicted Damage 57 | . . 57 Shots 2 | . . 2 Rammed . | . . . Targets Rammed 1 | . 1 . Kicked . | . . . Crushed 1 | . 1 . Highest Temperature 339 | . 256 339 Average Temperature 105 | . 153 89 Received Heat Transfer 291 | . 174 117 Effects 1 | . . 1 Shutdowns 1 | . . 1 Siege Activations . | . . . Robots Corrupted . | . . . Combat Hostiles . | . . . Parts Fried . | . . . Impact Corruptions . | . . . Robots Melted 1 | . . 1 Combat Hostiles 1 | . . 1 Parts Melted 2 | . . 2 Heat Transferred 1073 | . . 1073 Parts Sabotaged . | . . . Parts Stolen . | . . . Parts Stripped . | . . . Power Chain Reactions . | . . . Alert | -11 -10 -9 ------- Run | Yrd Mat Mat Peak Influence 332 | 20 152 332 Initial 17 | . 13 17 Average 70 | 9 45 187 Maximum Alert Level 1 | . . 1 Low Security (%) 91 | 100 100 54 Level 1 8 | . . 45 Level 2 . | . . . Level 3 . | . . . Level 4 . | . . . Level 5 . | . . . High Security . | . . . Max Security . | . . . Squads Dispatched . | . . . Investigation . | . . . Extermination . | . . . Reinforcement . | . . . Assault . | . . . Garrison . | . . . Intercept . | . . . Searches Triggered . | . . . Construction Impeded . | . . . Haulers Reinforced . | . . . Active Scanning Responses . | . . . Cargo Convoy Interrupts . | . . . Stealth | -11 -10 -9 --------- Run | Yrd Mat Mat Distress Signals 4 | . 2 2 Communications Jammed . | . . . Distress Signals . | . . . Times Spotted 39 | . 24 15 Peak Tracking Total 6 | . 6 6 Tactical Retreats 4 | . 3 1 Traps | -11 -10 -9 ------- Run | Yrd Mat Mat Traps Triggered 3 | . 3 . Indirectly . | . . . Trap Hack Attempts . | . . . Triggered . | . . . Disarmed . | . . . Reprogrammed 6 | . 6 . Reused . | . . . Traps Extracted . | . . . Installed . | . . . Triggered . | . . . Machines | -11 -10 -9 ---------- Run | Yrd Mat Mat Machines Disabled 1 | . 1 . Max in Single Turn 1 | . 1 . Machines Repaired . | . . . Machines Dismantled . | . . . Machines Sabotaged . | . . . Overloaded Fab Kills . | . . . Hacking | -11 -10 -9 --------- Run | Yrd Mat Mat Machines Accessed 9 | . 9 . Terminals 7 | . 7 . Fabricators . | . . . Repair Stations . | . . . Recycling Units 2 | . 2 . Scanalyzers . | . . . Garrison Access . | . . . Total Hacks 22 | . 22 . Successful 13 | . 13 . Failed 9 | . 9 . Catastrophic 1 | . 1 . Database Lockouts . | . . . Manual 17 | . 17 . Terminals 20 | . 20 . Fabricators . | . . . Repair Stations . | . . . Recycling Units 2 | . 2 . Scanalyzers . | . . . Garrison Access . | . . . Terminal Hacks 4 | . 4 . Locate Traps 1 | . 1 . Reprogram Traps 1 | . 1 . Zone Layout 2 | . 2 . Fabricator Hacks . | . . . Repair Station Hacks . | . . . Recycling Unit Hacks 2 | . 2 . Report Inventory 2 | . 2 . Scanalyzer . | . . . Garrison Access Hacks . | . . . Unauthorized Hacks 7 | . 7 . Terminals 7 | . 7 . Botnet 7 | . 7 . Fabricators . | . . . Repair Stations . | . . . Recycling Units . | . . . Scanalyzers . | . . . Garrison Access . | . . . Data Cores Recovered . | . . . Used . | . . . Hacking Detections 7 | . 7 . Full Trace Events 1 | . 1 . Feedback Events . | . . . Feedback Blocked . | . . . Robot Schematics Acquired . | . . . Robots Built . | . . . Authchips . | . . . Time . | . . . Total Robot Build Rating . | . . . Part Schematics Acquired . | . . . Parts Built . | . . . Authchips . | . . . Time . | . . . Total Part Build Rating . | . . . Parts Repaired . | . . . Time . | . . . Parts Recycled . | . . . Recycled Matter . | . . . Retrieved Matter . | . . . Retrieved Components . | . . . Parts Scanalyzed . | . . . Part Schematics Acquired . | . . . Parts Damaged . | . . . Bothacking | -11 -10 -9 ------------ Run | Yrd Mat Mat Used RIF Installer . | . . . Robots Hacked . | . . . Non-combat . | . . . Combat . | . . . Robot Hacks Applied . | . . . Relay Couplers Released . | . . . Fabnet Peak Effective % . | . . . Robots Rewired . | . . . Allies Hacked . | . . . Hacks Repelled . | . . . Allies | -11 -10 -9 -------- Run | Yrd Mat Mat Total Allies . | . . . Largest Group . | . . . Highest-Rated Group . | . . . Highest-Rated Ally . | . . . Total Orders . | . . . Ally Attacks . | . . . Total Damage . | . . . Kills . | . . . Allies Corrupted . | . . . Allies Melted . | . . . Intel | -11 -10 -9 ------- Run | Yrd Mat Mat Robot Analysis Total . | . . . Derelict Logs Recovered . | . . . Drone Launches . | . . . Drone Recoveries . | . . . Exploration | -11 -10 -9 ------------- Run | Yrd Mat Mat Turns Passed 2427 | 109 1865 453 Spaces Moved 1022 | 55 847 120 Core 19 | 19 . . Treads 1003 | 36 847 120 Legs . | . . . Wheels . | . . . Hover . | . . . Flight . | . . . Fastest Speed 50 | 50 160 240 Average Speed 201 | 122 200 240 Slowest Speed 320 | 160 320 240 Overloaded Moves . | . . . Propulsion Burnouts . | . . . Robots Hopped . | . . . Cave-ins Triggered . | . . . Exploration Rate (%) 40 | 4 98 18 Regions Visited 2 Branch Regions . Pre-discovered Areas . | . . . Known Exits Taken . | . . . Unknown Exits Taken 2 | 1 1 . Scrap Searched . | . . . Spaces Dug . | . . . Terrain Destroyed 22 | . . 22 Melee . | . . . Projectile . | . . . AOE 22 | . . 22 Terrain Rammed . | . . . Walls Destroyed . | . . . Machines Disabled . | . . . Actions | -11 -10 -9 --------- Run | Yrd Mat Mat Total 1218 | 77 932 209 Wait 64 | . 34 30 Move 1020 | 54 846 120 Hop . | . . . Pick Up 23 | 6 8 9 Fast Attach 1 | 1 . . Attach 12 | 6 2 4 Detach . | . . . Swap 7 | . 1 6 Drop . | . . . Fire 90 | 10 40 40 Melee . | . . . Ram . | . . . Kick . | . . . Crush 1 | . 1 . Escape Stasis . | . . . Rewire . | . . . Trap . | . . . Miscellaneous . | . . . Route ------- -11/Scrapyard -10/Materials (discovered 5 exits: [*Mat x3] / [*Min x2]) -9/Materials History --------- Turn | Location | Event 9 | -11/Scrapyard | Discovered new exit (range 15) 110 | -11/Scrapyard | Entered Materials 187 | -10/Materials | Discovered new exit (range 16) 301 | -10/Materials | Build established: Mutant 538 | -10/Materials | Discovered new exit (range 7) 592 | -10/Materials | Discovered new exit (range 13) 891 | -10/Materials | Discovered new exit (range 16) 1034 | -10/Materials | Discovered new exit (range 15) 1975 | -10/Materials | Entered another Materials area 1975 | -9/Materials | Evolved 2 slots: Propulsion x1, Utility x1 2428 | -9/Materials | Self-destructed Last Messages --------------- 02262_ U-05 Engineer lays Concrete. 02263_ U-05 Engineer builds a Wall. 02288_ K-01 Serf collects debris. 02321_ Y-45 Defender heat damages Heat Sink. 02322_ Y-45 Defender critical meltdown. 02328_ Acquired 45 matter. 02334_ K-01 Serf cleans the Nuclear Reactor. 02337_ K-01 Serf collects debris. 02344_ K-01 Serf cleans the Nuclear Reactor. 02348_ K-01 Serf collects debris. 02353_ Lgt. Armor Plating destroyed. 02359_ Aluminum Leg melted. 02359_ G-34 Mercenary destroyed. 02362_ Power failure, Lgt. Nuclear Core shutdown. 02366_ K-01 Serf collects debris. 02410_ A-02 Transporter destroyed. 02411_ R-06 Scavenger collects Disposable Heat Sink. 02413_ K-01 Serf collects debris. 02416_ R-06 Scavenger destroyed. 02416_ K-01 Serf collects debris. Map ----- +----------------------------------------------------+ | ????????????????????????????????????????? | | ????????????????????????????????????????? | | ????????????????????????????????????????? | | ????????????????????????????????????????? | | ????????????????????????????????????????? | | ????????????????????????????????????????? | | ????????????????????????????????????????? | | ????????????????????????????????????????? | | ????????????????????????????????????????? | | ????????????????????????????????????????? | | ????????????????????????????????????????? | | ?????????????????+??????????????????????? | | ????????????????? #?????????????????????? | | ??????????????### #?????????????????????? | | ??????????????# #?????????????????????? | | ??????????????+ #?????????????????????? | | ??????????????# #?????????????????????? | | ??????????????+ +?????????????????????? | | ??????????????# u#?????????????????????? | | ??????????????# #?????????????????????? | | ??????????????# #?????????????????????? | | ??????????????# #?????????????????????? | | ??????????????# #?????????????????????? | | ??????????????# #?????????????????????? | | ??????????????# #?????????????????????? | | ????########### @ #?????????????????????? | | ????# # #?????????????????????? | | ????# # ##########+#??????????? | | ????? """ # ?????????? | | ?????""""" + ?????????? | | ?????""""" # != ?????????? | | ?????""""" #!!!############??????????? | | ??????""" #!=k#?????????????????????? | | ????# #%!=#?????????????????????? | | ????########### ! #?????????????????????? | | ???????# #=wu#?????????????????????? | | ???????# """ # #?????????????????????? | | ???????# """%#[ #?????????????????????? | | ???????# """=+% #???????????#?????????? | | ???????# =#! ######## ?????????? | | ???????# # ????????? | | ???????######## ????????? | | ??????????????# ????????? | | ??????????????# ######## ?????????? | | ??????????##### # #??????????????? | | ????####### # + """ #??????????????? | | ????# # # """ #??????????????? | | ????# ! # # """ #??????????????? | | ????# [ # # #?????????????? | | ????# !! = # # ##?????????????? | +----------------------------------------------------+ Best States ------------- Heat Dissipation 28 Energy Generation 14 Energy Capacity 160 Matter Stores 300 Matter Capacity 300 Sight Range 16 Terrain Scan Density 10 Armor Coverage 150 Evasion (%) 50 Recoil Reduction 3 Item Schematics ----------------- None Robot Schematics ------------------ None Fabricated ------------ Nothing Alien Tech Used ----------------- None Achievements -------------- None Challenges ------------ None Game ------ Seed SpliceFlyingKit Manual? 0 Play Time 00:18:20 Cumulative 25.2 hours Start 2025.01.09 @ 17:58:04 End 2025.01.09 @ 18:29:43 Sessions 1 Manual Loads 0 Difficulty Rogue Special Mode None Game No. 38 Rogue 35 Adventurer 0 Explorer 3 Win Type - Total 0 Types 0/0/0/0/0/0/0/0/0 Lore% 4 Gallery% 24 Achievement% 23 Wizard Run 0 Options --------- Layout 0 ASCII 0 Keyboard 0 Movement Numpad Keybinds 0 Fullscreen 2 Font 16/SmallcapsGlow Map View 88x55 Zoom Use 0% Tactical HUD 1 Map Filters NONE Filters NONE Steam 1 RUN: 9d32ffd6-d7cd-42c2-993f-80ce2b37b15a